bitfinex-derivatives/quotes_SOLF0:USTF0_20251125
["timestamp","ask_amount","ask_price","bid_price","bid_amount"]
[1764082319845,0.05386696,133.59,133.56,0.05416249]
[1764082320254,104.8864,133.56,133.48,3.05]
[1764082320456,3.02,133.56,133.48,3.05]
[1764082320653,107.9044,133.56,133.48,3.05]
[1764082320858,6.7435,133.54,133.48,3.05]
[1764082321152,6.7435,133.54,133.44,9.35173864]
[1764082321153,3.02,133.58,133.49,30.19]
[1764082321357,0.04943155,133.55,133.52,3.09950039]
[1764082321652,0.05127879,133.55,133.52,3.10415831]
[1764082322051,0.00127879,133.55,133.54,3.05]
[1764082322756,0.00127879,133.55,133.54,30.19]
[1764082322945,0.00127879,133.55,133.54,3.05]
[1764082323145,0.00127879,133.55,133.54,30.19]
[1764082323346,0.00127879,133.55,133.54,92.19]
[1764082323552,0.00127879,133.55,133.54,62.0]
[1764082323762,0.00127879,133.55,133.52,0.05415831]
[1764082323948,0.00127879,133.55,133.54,3.05]
[1764082324455,107.8248,133.66,133.57,3.05]
[1764082324654,3.02,133.62,133.53,3.05]
[1764082324961,3.02,133.61,133.54,27.14]
[1764082325254,6.7406,133.6,133.54,27.14]
[1764082325461,0.04995238,133.59,133.56,3.09891842]
[1764082325658,3.02,133.67,133.58,3.05]
[1764082325856,3.02,133.67,133.6,3.05]
[1764082326055,3.02,133.71,133.61,27.14]
[1764082326260,6.7355,133.7,133.61,30.19]
[1764082326554,6.7355,133.7,133.62,3.05]
[1764082326758,0.05012413,133.67,133.64,0.04798696]
[1764082326960,0.05012413,133.67,133.64,3.09798696]
[1764082327260,3.02,133.78,133.68,3.05]
[1764082327453,3.02,133.78,133.69,30.17]
[1764082327762,3.02,133.78,133.7,9.785]
[1764082327961,107.6985,133.82,133.71,3.05]
[1764082328160,107.7009,133.82,133.73,3.05]
[1764082328356,107.7009,133.82,133.76,0.05512974]
[1764082328357,0.04732972,133.79,133.76,0.05512974]
[1764082328658,0.04732972,133.79,133.76,3.10512974]
[1764082328857,107.6693,133.86,133.78,3.05]
[1764082329164,3.02,133.86,133.78,3.05]
[1764082329356,104.6257,133.89,133.78,3.05]
[1764082329557,104.6257,133.89,133.79,3.05]
[1764082329558,3.02,133.89,133.79,3.05]
[1764082329856,0.0505543,133.85,133.83,0.05445413]
[1764082330062,3.0705543,133.85,133.83,0.05445413]
[1764082330263,0.0505543,133.85,133.83,0.05445413]
[1764082330447,114.4536543,133.85,133.83,0.05445413]
[1764082330651,9.7986543,133.85,133.83,0.05445413]
[1764082330858,107.7261543,133.85,133.83,0.05445413]
[1764082331065,107.7261543,133.85,133.75,3.05]
[1764082331066,3.0705543,133.85,133.79,27.1]
[1764082331252,3.02,133.88,133.8,3.05]
[1764082331666,104.6275,133.89,133.8,3.05]
[1764082331860,104.6275,133.89,133.81,27.1]
[1764082332052,0.05320527,133.86,133.84,0.0555568]
[1764082332654,3.07320527,133.86,133.84,0.0555568]
[1764082333464,3.02,133.84,133.74,3.05]
[1764082333761,3.02,133.84,133.68,104.7827]
[1764082333762,3.02,133.83,133.75,3.05]
[1764082333969,3.02,133.81,133.71,3.05]
[1764082334161,114.4549,133.79,133.71,3.05]
[1764082334353,107.7373,133.77,133.68,27.08]
[1764082334672,107.80268658,133.76,133.71,0.05342447]
[1764082334860,3.02,133.75,133.71,0.05342447]
[1764082335560,3.02,133.73,133.71,0.05342447]
[1764082335864,104.7351,133.75,133.71,0.05342447]
[1764082335865,3.02,133.75,133.71,0.05342447]
[1764082336063,3.02,133.74,133.71,0.05342447]
[1764082336553,0.05538658,133.76,133.71,0.05342447]
[1764082336754,3.07538658,133.76,133.71,0.05342447]
[1764082336959,3.02,133.75,133.71,0.05342447]
[1764082337168,0.05538658,133.76,133.71,3.13342447]
[1764082337367,104.6735,133.83,133.72,3.08]
[1764082337368,2.97,133.83,133.72,3.08]
[1764082337550,2.97,133.83,133.73,3.08]
[1764082337752,2.97,133.83,133.74,30.16]
[1764082338363,0.05461608,133.8,133.75,3.08]
[1764082338550,0.05461608,133.8,133.74,27.08]
[1764082338551,0.05461608,133.8,133.77,0.05280993]
[1764082338751,3.02461608,133.8,133.77,0.05280993]
[1764082338957,2.97,133.79,133.72,30.16]
[1764082339170,2.97,133.79,133.72,27.08]
[1764082339662,2.97,133.77,133.68,3.08]
[1764082339868,2.97,133.77,133.66,15.98353356]
[1764082339869,2.97,133.75,133.66,27.08]
[1764082340069,0.05398554,133.72,133.69,0.04952357]
[1764082340270,3.02398554,133.72,133.69,0.04952357]
[1764082340459,2.97,133.84,133.7,3.08]
[1764082340771,2.97,133.83,133.72,3.08]
[1764082340976,2.97,133.83,133.72,30.26]
[1764082341166,2.97,133.81,133.72,3.08]
[1764082341470,0.05510794,133.78,133.75,3.136903]
[1764082341971,0.05510794,133.78,133.75,0.056903]
[1764082344267,2.97,133.76,133.75,0.056903]
[1764082344464,104.7171,133.77,133.75,0.056903]
[1764082344668,114.4192,133.77,133.75,0.056903]
[1764082345060,104.7355,133.75,133.66,3.08]
[1764082345261,6.7338,133.73,133.67,27.12]
[1764082345577,2.97,133.76,133.67,30.2]
[1764082345967,0.04853842,133.73,133.7,0.05248871]
[1764082346165,0.04853842,133.73,133.7,3.13248871]
[1764082346365,0.04853842,133.73,133.7,0.05248871]
[1764082347164,3.01853842,133.73,133.7,0.05248871]
[1764082347669,0.04853842,133.73,133.7,0.05248871]
[1764082347864,3.01853842,133.73,133.7,0.05248871]
[1764082348061,2.97,133.72,133.7,0.05248871]
[1764082348769,9.7047,133.72,133.7,0.05248871]
[1764082348967,2.97,133.71,133.7,0.05248871]
[1764082349176,3.01853842,133.73,133.7,0.05248871]
[1764082349472,4.51853842,133.73,133.58,92.78]
[1764082349776,2.97,133.69,133.59,30.18]
[1764082349960,107.7662,133.67,133.59,3.08]
[1764082350169,107.7662,133.67,133.58,89.7]
[1764082350170,2.97,133.65,133.58,89.7]
[1764082350770,0.04876115,133.63,133.6,0.05347775]
[1764082351572,0.04876115,133.63,133.6,3.13347775]
[1764082351768,3.01876115,133.63,133.6,0.05347775]
[1764082352573,0.04876115,133.63,133.6,0.05347775]
[1764082353274,3.01876115,133.63,133.6,0.05347775]
[1764082353471,0.04876115,133.63,133.6,0.05347775]
[1764082353881,0.04876115,133.63,133.6,3.13347775]
[1764082354271,2.97,133.7,133.62,3.08]
[1764082354469,6.734,133.73,133.64,9.818]
[1764082354873,107.7182,133.73,133.64,3.08]
[1764082355066,2.97,133.72,133.64,3.08]
[1764082355268,2.97,133.76,133.64,3.08]
[1764082355469,0.05573883,133.71,133.68,3.08]
[1764082355773,0.05573883,133.71,133.68,3.13338708]
[1764082356176,0.05573883,133.71,133.68,4.63338708]
[1764082356473,2.97,133.78,133.69,30.16]
[1764082356662,2.97,133.8,133.7,3.08]
[1764082357064,2.97,133.73,133.63,3.08]
[1764082357278,0.04813833,133.69,133.67,3.13671164]
[1764082357482,0.05378383,133.69,133.67,3.13550432]
[1764082357785,3.02378383,133.69,133.67,0.05550432]
[1764082357971,3.02378383,133.69,133.59,3.08]
[1764082357972,107.80458383,133.69,133.59,3.08]
[1764082358174,107.7228,133.73,133.59,3.08]
[1764082358478,6.7349,133.71,133.59,3.08]
[1764082358676,107.7186,133.73,133.61,3.08]
[1764082358872,3.02626742,133.68,133.66,0.05048999]
[1764082359084,3.02626742,133.68,133.55,3.08]
[1764082359085,107.7903,133.64,133.55,3.08]
[1764082359270,2.97,133.64,133.55,3.08]
[1764082359470,6.7384,133.64,133.55,3.08]
[1764082359877,6.7351,133.71,133.58,3.08]
[1764082360080,0.05529559,133.66,133.63,0.04991825]
[1764082360270,0.05529559,133.66,133.63,3.12991825]
[1764082361372,0.05529559,133.66,133.63,0.04991825]
[1764082361971,0.05529559,133.66,133.63,3.12991825]
[1764082362978,0.05529559,133.66,133.64,3.08]
[1764082363184,2.97,133.75,133.64,3.08]
[1764082363572,120.67313356,133.81,133.66,3.08]
[1764082363788,2.97,133.79,133.67,3.08]
[1764082364090,0.05707489,133.74,133.72,3.12768732]
[1764082364389,0.0477252,133.74,133.73,27.12]
[1764082364688,107.7593252,133.74,133.72,0.04768732]
[1764082364882,2.97,133.73,133.72,0.04768732]
[1764082365185,6.7345,133.72,133.67,27.12]
[1764082365484,2.97,133.73,133.67,27.12]
[1764082366075,104.7376,133.75,133.69,0.0475493]
[1764082366076,3.01866352,133.71,133.69,0.0475493]
[1764082366281,2.97,133.71,133.64,27.1]
[1764082366674,2.97,133.76,133.66,3.08]
[1764082366883,2.97,133.76,133.66,107.8817]
[1764082367082,3.13,133.72,133.65,62.0]
[1764082367283,3.13,133.72,133.6,3.0]
[1764082367284,0.05236344,133.7,133.67,0.0527394]
[1764082369984,3.18236344,133.7,133.67,0.0527394]
[1764082370684,3.13,133.69,133.67,0.0527394]
[1764082371185,3.13,133.69,133.56,104.8783]
[1764082371186,111.5575,133.64,133.53,3.0]
[1764082371385,107.9489,133.64,133.54,27.08]
[1764082371683,104.8515,133.6,133.51,89.7]
[1764082371892,3.13,133.6,133.52,30.08]
[1764082372083,0.0505452,133.57,133.55,0.05224979]
[1764082372595,0.0505452,133.57,133.55,3.05224979]
[1764082373383,0.0505452,133.57,133.55,0.05224979]
[1764082373988,0.0505452,133.57,133.55,62.05224979]
[1764082374194,0.0505452,133.57,133.55,65.05224979]
[1764082374384,107.919,133.68,133.56,3.0]
[1764082374688,3.13,133.66,133.57,27.08]
[1764082375184,3.13,133.66,133.56,3.0]
[1764082375383,3.13,133.66,133.57,27.06]
[1764082375583,0.05447767,133.63,133.6,0.05550742]
[1764082375789,0.05447767,133.63,133.6,3.05550742]
[1764082376389,104.7489,133.73,133.62,3.0]
[1764082376594,104.7612,133.72,133.62,3.0]
[1764082376893,111.4911,133.72,133.62,3.0]
[1764082377187,111.4911,133.72,133.61,12.70772377]
[1764082377188,3.13,133.72,133.61,12.70772377]
[1764082377390,6.7387,133.64,133.58,27.06]
[1764082377599,6.7387,133.64,133.58,27.08]
[1764082377893,3.13,133.72,133.59,3.0]
[1764082378189,107.9098,133.69,133.6,3.0]
[1764082378390,0.04847689,133.66,133.6,30.08]
[1764082378586,0.04847689,133.66,133.63,0.05069768]
[1764082378990,3.07847689,133.66,133.63,0.05069768]
[1764082380294,3.07847689,133.66,133.56,6.742]
[1764082380295,9.7683,133.64,133.56,2.96]
[1764082380597,104.8355,133.62,133.56,27.06]
[1764082380788,6.7395,133.62,133.56,27.06]
[1764082380984,3.03,133.63,133.56,27.06]
[1764082381185,104.8275,133.63,133.56,27.06]
[1764082381385,3.03,133.59,133.58,0.0479632]
[1764082381688,107.8906,133.59,133.51,2.96]
[1764082381890,107.8906,133.59,133.51,30.02]
[1764082381891,3.03,133.59,133.51,30.02]
[1764082382089,3.03,133.59,133.48,104.9401]
[1764082382090,104.8689,133.58,133.47,2.96]
[1764082382392,6.7424,133.56,133.48,30.02]
[1764082382593,104.8452,133.61,133.48,30.02]
[1764082382594,3.03,133.62,133.52,2.96]
[1764082382798,3.03,133.62,133.53,2.96]
[1764082382987,3.03,133.62,133.44,24.16204419]
[1764082382988,104.8828,133.56,133.48,2.96]
[1764082383194,107.923,133.55,133.43,107.941]
[1764082383392,3.03,133.55,133.46,2.96]
[1764082383692,0.04907541,133.52,133.49,3.01510049]
[1764082383896,0.04907541,133.52,133.49,0.05510049]
[1764082384289,0.04907541,133.52,133.49,3.01510049]
[1764082384794,3.07907541,133.52,133.49,0.05510049]
[1764082385000,0.04907541,133.52,133.49,0.05510049]
[1764082385801,0.04907541,133.52,133.49,3.01510049]
[1764082385991,0.04907541,133.52,133.49,0.05510049]
[1764082386891,3.03,133.61,133.51,2.96]
[1764082387096,3.03,133.6,133.51,2.96]
[1764082387297,6.741,133.59,133.51,2.96]
[1764082387497,3.03,133.6,133.51,2.96]
[1764082387891,0.04846287,133.57,133.54,0.05675818]
[1764082388295,3.07846287,133.57,133.54,0.05675818]
[1764082388695,0.04846287,133.57,133.54,0.05675818]
[1764082389201,3.07846287,133.57,133.54,0.05675818]
[1764082389799,3.03,133.55,133.54,0.05675818]
[1764082390199,0.04846287,133.57,133.54,0.05675818]
[1764082390395,3.07846287,133.57,133.54,0.05675818]
[1764082390997,0.04846287,133.57,133.54,0.05675818]
[1764082391500,3.07846287,133.57,133.54,0.05675818]
[1764082391695,3.03,133.56,133.54,0.05675818]
[1764082392097,0.04846287,133.57,133.54,0.05675818]
[1764082392296,107.95556287,133.57,133.54,0.05675818]
[1764082392599,6.7435,133.54,133.47,33.7867]
[1764082392804,6.7435,133.54,133.48,27.06]
[1764082393006,107.9159,133.56,133.48,27.06]
[1764082393208,6.744,133.53,133.48,27.06]
[1764082393509,0.05322419,133.52,133.49,0.05564715]
[1764082393704,3.08322419,133.52,133.49,0.05564715]
[1764082394300,9.7751,133.51,133.49,0.05564715]
[1764082394501,3.03,133.5,133.49,0.05564715]
[1764082394807,3.03,133.5,133.41,2.96]
[1764082394808,104.9365,133.49,133.41,2.96]
[1764082395101,3.03,133.49,133.41,2.96]
[1764082395301,6.747,133.47,133.42,27.04]
[1764082395503,3.03,133.49,133.42,27.04]
[1764082395816,0.05510115,133.47,133.44,0.05658866]
[1764082397399,3.01,133.54,133.44,3.13658866]
[1764082397708,3.01,133.51,133.43,27.02]
[1764082397905,107.9352,133.51,133.42,6.7491]
[1764082398096,6.7466,133.48,133.43,27.02]
[1764082398408,0.04932812,133.47,133.46,6.7472]
[1764082398602,3.01,133.53,133.44,3.08]
[1764082398805,104.8833,133.56,133.4,89.72]
[1764082398806,0.04722807,133.48,133.46,3.08]
[1764082399007,3.01,133.56,133.47,3.08]
[1764082399395,3.01,133.56,133.45,27.02]
[1764082399396,3.01,133.54,133.48,27.02]
[1764082399608,9.754,133.53,133.48,27.02]
[1764082399904,0.0558988,133.52,133.49,0.05235451]
[1764082400206,3.01,133.5,133.49,0.05235451]
[1764082400402,107.9417,133.5,133.44,27.02]
[1764082400701,6.747,133.47,133.42,92.1]
[1764082400907,107.9417,133.5,133.42,92.1]
[1764082401303,107.9417,133.5,133.42,30.1]
[1764082401504,0.0522445,133.47,133.45,0.05310357]
[1764082401705,6.7992445,133.47,133.45,0.05310357]
[1764082401903,0.0522445,133.47,133.45,0.05310357]
[1764082402908,0.0522445,133.47,133.45,3.13310357]
[1764082403608,0.0522445,133.47,133.46,3.08]
[1764082404214,0.0522445,133.47,133.46,92.06]
[1764082404420,0.0522445,133.47,133.46,30.06]
[1764082404713,0.0522445,133.47,133.45,0.05310357]
[1764082405505,107.9745,133.46,133.37,3.08]
[1764082405716,107.9745,133.46,133.38,26.98]
[1764082405912,6.748,133.45,133.38,30.06]
[1764082406213,3.01,133.46,133.39,3.08]
[1764082406611,0.05543883,133.44,133.41,0.05117914]
[1764082407006,6.80393883,133.44,133.41,0.05117914]
[1764082407204,0.05543883,133.44,133.41,0.05117914]
[1764082407410,0.05543883,133.44,133.41,3.13117914]
[1764082407609,0.05543883,133.44,133.42,3.08]
[1764082408110,6.7492,133.43,133.41,0.05117914]
[1764082408711,9.7592,133.43,133.41,0.05117914]
[1764082408907,6.7492,133.43,133.41,0.05117914]
[1764082409106,0.05543883,133.44,133.41,0.05117914]
[1764082409417,0.05543883,133.44,133.41,3.13117914]
[1764082409615,104.9554,133.47,133.41,0.05117914]
[1764082409812,104.9682,133.45,133.39,3.08]
[1764082410021,6.7486,133.44,133.4,26.98]
[1764082410216,6.7486,133.44,133.4,30.06]
[1764082410518,0.05363004,133.43,133.41,0.05415198]
[1764082411312,6.80263004,133.43,133.41,0.05415198]
[1764082412118,0.05363004,133.43,133.41,0.05415198]
[1764082412522,6.7463,133.49,133.41,3.13415198]
[1764082412823,3.01,133.5,133.42,3.08]
[1764082413123,3.01,133.5,133.39,9.37515184]
[1764082413124,3.01,133.46,133.38,65.08]
[1764082413331,6.7486,133.44,133.4,3.08]
[1764082413528,3.01,133.46,133.41,0.05032804]
[1764082413734,3.01,133.51,133.42,3.08]
[1764082413920,3.01,133.51,133.43,3.08]
[1764082414123,104.8851,133.56,133.46,3.08]
[1764082414332,104.8897,133.55,133.47,30.06]
[1764082414732,0.04964571,133.52,133.5,0.05411496]
[1764082415135,0.04964571,133.52,133.5,3.13411496]
[1764082415633,0.04964571,133.52,133.5,0.05411496]
[1764082415829,6.79424571,133.52,133.5,27.03411496]
[1764082416028,0.04964571,133.52,133.5,27.03411496]
[1764082416223,6.79404571,133.52,133.5,0.05411496]
[1764082416930,3.01,133.51,133.5,0.05411496]
[1764082417138,6.7464,133.48,133.43,102.48]
[1764082417332,107.932,133.51,133.45,26.98]
[1764082417732,104.922,133.51,133.45,54.32]
[1764082418034,104.9133,133.52,133.45,54.32]
[1764082418333,0.05051778,133.5,133.47,3.12719179]
[1764082420436,0.05051778,133.5,133.47,9.87399179]
[1764082420641,104.8779,133.57,133.48,30.06]
[1764082420642,3.01,133.57,133.48,30.06]
[1764082420938,107.923,133.52,133.48,26.98]
[1764082421138,104.906,133.53,133.47,26.98]
[1764082421334,107.9314,133.51,133.46,26.98]
[1764082421646,3.06452457,133.5,133.47,0.0491094]
[1764082421834,6.7465,133.48,133.47,0.0491094]
[1764082422339,3.06452457,133.5,133.47,0.0491094]
[1764082422340,0.05452457,133.5,133.47,0.0491094]
[1764082422846,0.05452457,133.5,133.47,27.0291094]
[1764082423044,0.05452457,133.5,133.47,30.1091094]
[1764082423238,0.05452457,133.5,133.48,3.08]
[1764082424044,0.05452457,133.5,133.49,3.08]
[1764082424841,0.05452457,133.5,133.48,26.98]
[1764082425038,0.05452457,133.5,133.48,30.06]
[1764082425444,0.05452457,133.5,133.49,3.08]
[1764082425746,0.05452457,133.5,133.48,26.98]
[1764082425936,0.05452457,133.5,133.48,30.06]
[1764082426644,0.05452457,133.5,133.48,26.98]
[1764082426842,0.05452457,133.5,133.48,30.06]
[1764082427343,0.05452457,133.5,133.48,3.08]
[1764082427547,0.05452457,133.5,133.49,26.98]
[1764082428338,0.05452457,133.5,133.49,29.98]
[1764082431245,0.00452457,133.5,133.49,29.98]
[1764082431450,104.869,133.58,133.49,29.98]
[1764082431756,3.07,133.57,133.49,29.98]
[1764082432049,6.7424,133.56,133.49,29.98]
[1764082432466,0.05382841,133.54,133.51,3.05282277]
[1764082433147,0.05382841,133.54,133.52,26.96]
[1764082433446,3.12382841,133.54,133.51,0.05282277]
[1764082433650,0.05382841,133.54,133.51,3.05282277]
[1764082434454,0.05382841,133.54,133.51,0.05282277]
[1764082434955,0.05382841,133.54,133.51,3.05282277]
[1764082436855,3.12382841,133.54,133.51,0.05282277]
[1764082437052,0.05382841,133.54,133.51,0.05282277]
[1764082437455,0.05382841,133.54,133.51,3.05282277]
[1764082439552,0.05382841,133.54,133.53,3.06]
[1764082440647,3.07,133.58,133.53,9.8038]
[1764082440846,3.14,133.62,133.54,30.02]
[1764082441052,104.783,133.69,133.59,9.8004]
[1764082441356,3.14,133.68,133.6,30.02]
[1764082441679,3.14,133.72,133.63,3.11296852]
[1764082441957,3.14,133.72,133.64,3.06]
[1764082442157,6.7339,133.73,133.66,3.06]
[1764082442350,3.14,133.73,133.63,62.0]
[1764082442544,107.8909,133.73,133.67,26.96]
[1764082442744,3.14,133.7,133.69,0.05031358]
[1764082442944,0.03722381,133.71,133.69,0.05031358]
[1764082443156,0.03722381,133.71,133.69,3.11031358]
[1764082444158,0.03722381,133.71,133.69,0.05031358]
[1764082444457,3.17722381,133.71,133.69,0.05031358]
[1764082444955,0.03722381,133.71,133.69,0.05031358]
[1764082445556,0.03722381,133.71,133.69,3.11031358]
[1764082445756,9.8714,133.78,133.69,3.11031358]
[1764082445953,3.14,133.78,133.71,107.8226]
[1764082446149,104.6868,133.81,133.72,3.06]
[1764082446354,3.14,133.78,133.72,26.94]
[1764082446542,3.14,133.78,133.71,26.94]
[1764082446746,3.14,133.77,133.73,0.0511943]
[1764082446959,3.14,133.76,133.73,0.0511943]
[1764082447458,3.14,133.74,133.73,0.0511943]
[1764082448643,4.64,133.74,133.73,0.0511943]
[1764082448847,104.7583,133.72,133.62,3.06]
[1764082449046,3.14,133.72,133.63,30.0]
[1764082449647,3.14,133.72,133.64,3.06]
[1764082449846,0.05067168,133.69,133.64,134.8158]
[1764082450045,0.05067168,133.69,133.67,0.05343677]
[1764082450251,0.05067168,133.69,133.67,30.05343677]
[1764082450455,0.05067168,133.69,133.68,3.06]
[1764082451364,6.7331,133.75,133.68,3.06]
[1764082451860,6.7336,133.74,133.68,3.06]
[1764082452250,3.14,133.75,133.68,3.06]
[1764082452447,3.14,133.75,133.7,0.05509811]
[1764082452650,3.14,133.73,133.7,0.05509811]
[1764082453058,9.8736,133.74,133.7,0.05509811]
[1764082454162,3.14,133.78,133.7,3.11509811]
[1764082454858,6.7321,133.77,133.7,3.11509811]
[1764082455164,3.14,133.77,133.71,26.92]
[1764082455556,3.14,133.77,133.7,0.05509811]
[1764082455750,3.14,133.77,133.71,26.92]
[1764082456256,3.14,133.8,133.71,29.98]
[1764082456465,3.14,133.8,133.74,0.04896343]
[1764082457061,3.14,133.77,133.74,0.04896343]
[1764082457461,104.652,133.86,133.74,0.04896343]
[1764082457758,3.21,133.8,133.77,0.05451667]
[1764082457964,3.21,133.8,133.77,0.05235279]
[1764082460856,3.21,133.79,133.74,37.28]
[1764082461373,3.21,133.78,133.74,37.28]
[1764082461664,6.73,133.81,133.74,40.51]
[1764082461881,0.05287541,133.79,133.76,0.05405972]
[1764082462867,0.05287541,133.79,133.76,3.28405972]
[1764082463166,0.05287541,133.79,133.76,0.05405972]
[1764082463467,3.26287541,133.79,133.76,0.05405972]
[1764082463663,3.26287541,133.79,133.74,37.28]
[1764082463664,3.21,133.77,133.74,37.28]
[1764082464662,3.21,133.77,133.74,37.32744398]
[1764082465058,6.7316,133.78,133.74,37.32744398]
[1764082465262,3.21,133.78,133.74,37.32744398]
[1764082466865,3.21,133.77,133.74,37.32744398]
[1764082467373,104.7565,133.72,133.65,3.23]
[1764082467670,104.7565,133.72,133.61,5.96422595]
[1764082467671,104.7796,133.69,133.61,3.23]
[1764082468063,104.7562,133.72,133.61,3.23]
[1764082468257,104.7644,133.71,133.61,3.23]
[1764082468569,0.05485478,133.68,133.65,3.28268895]
[1764082469463,104.7482,133.73,133.65,3.28268895]
[1764082469663,104.7727,133.7,133.65,0.05268895]
[1764082469873,104.7801,133.69,133.65,0.05268895]
[1764082470072,104.7889,133.68,133.65,0.05268895]
[1764082470470,6.737,133.67,133.65,0.05268895]
[1764082470774,0.04767719,133.68,133.65,0.05268895]
[1764082470964,6.7371,133.67,133.65,0.05268895]
[1764082471171,111.5323,133.67,133.65,0.05268895]
[1764082471558,104.8147,133.65,133.58,26.9]
[1764082471757,104.8147,133.65,133.57,3.23]
[1764082471969,104.8147,133.65,133.57,30.13]
[1764082471970,104.8232,133.64,133.57,30.13]
[1764082472269,104.8423,133.61,133.53,3.23]
[1764082472464,6.7412,133.59,133.57,0.0553706]
[1764082473276,111.5996,133.59,133.57,0.0553706]
[1764082474259,6.7412,133.59,133.57,0.0553706]
[1764082475267,0.04983998,133.6,133.57,3.2853706]
[1764082475773,6.79053998,133.6,133.57,3.2853706]
[1764082475971,104.8582,133.59,133.57,0.0553706]
[1764082476376,104.90043998,133.6,133.57,0.0553706]
[1764082476672,0.04983998,133.6,133.57,3.2853706]
[1764082477778,6.7376,133.66,133.57,3.2853706]
[1764082477975,5.96422595,133.7,133.57,3.23]
[1764082478275,104.7879,133.68,133.57,3.23]
[1764082478475,104.8033,133.66,133.57,3.23]
[1764082478666,0.05209403,133.64,133.61,0.04805573]
[1764082478874,6.739,133.63,133.61,0.04805573]
[1764082480278,6.7399,133.61,133.54,3.23]
[1764082480466,104.8502,133.6,133.54,3.23]
[1764082480671,104.8689,133.58,133.5,3.23]
[1764082481276,0.05098324,133.55,133.53,0.04884414]
[1764082482882,0.05098324,133.55,133.53,3.27884414]
[1764082483276,0.05098324,133.55,133.53,0.04884414]
[1764082483576,0.05098324,133.55,133.53,3.27884414]
[1764082485282,0.05098324,133.55,133.53,0.04884414]
[1764082485476,104.94398324,133.55,133.48,24.22]
[1764082485682,0.05098324,133.55,133.48,24.22]
[1764082485883,0.05098324,133.55,133.49,3.23]
[1764082486273,6.79398324,133.55,133.49,3.23]
[1764082486476,0.05098324,133.55,133.49,3.23]
[1764082486681,209.7968,133.54,133.51,0.0524672]
[1764082486881,6.7445,133.52,133.51,0.0524672]
[1764082487079,104.9178,133.52,133.48,24.22]
[1764082487588,104.9073,133.53,133.48,24.22]
[1764082487979,0.04930863,133.52,133.49,0.05332587]
[1764082488380,0.04930863,133.52,133.49,3.15332587]
[1764082488882,6.742,133.57,133.49,3.15332587]
[1764082489084,6.742,133.57,133.48,24.22]
[1764082489085,6.742,133.57,133.5,3.1]
[1764082489288,104.8751,133.57,133.49,3.1]
[1764082489490,104.8397,133.62,133.49,3.1]
[1764082489784,26.9,133.63,133.49,3.1]
[1764082489785,104.883,133.56,133.49,3.1]
[1764082489983,0.04925085,133.54,133.51,0.04788747]
[1764082491180,0.04925085,133.54,133.51,3.14788747]
[1764082491894,104.8564,133.6,133.51,3.14788747]
[1764082492182,6.7412,133.59,133.51,9.8445]
[1764082492389,6.7412,133.59,133.52,3.1]
[1764082492582,104.8454,133.61,133.52,27.23]
[1764082492784,0.04859295,133.58,133.55,0.04877966]
[1764082492992,0.04859295,133.58,133.55,3.14877966]
[1764082494083,6.79009295,133.58,133.55,3.14877966]
[1764082494980,0.04859295,133.58,133.55,3.14877966]
[1764082500291,104.7824,133.69,133.55,3.14877966]
[1764082500292,131.6588,133.72,133.58,3.04]
[1764082500587,5.96422595,133.71,133.6,3.04]
[1764082500789,104.7287,133.76,133.66,3.04]
[1764082500990,104.7404,133.74,133.66,3.04]
[1764082501189,5.96422595,133.77,133.66,3.04]
[1764082501389,0.05139226,133.71,133.69,3.08828037]
[1764082501590,104.7098,133.78,133.7,29.92]